Cogmind - Beta 13 @@@ ROGUE MODE // 2024.07.31 @ 18:26:01 Player: jimmyl Result: Destroyed by Autobeam Turret with Autobeam Performance ------------- Evolutions (0) 0 Regions Visited (2) 400 Robots Destroyed (26) 130 Value Destroyed (451) 451 Prototype IDs (0) 0 Alien Tech Used (0) 0 Bonus (0) 0 TOTAL SCORE: 981 Bonus ------- None Cogmind --------- Core Integrity 0/250 Matter 71/300 Energy 250/250 System Corruption 0% Temperature Cool (36) Movement Core (700) Ox13 Location -10/Subcaves Parts ------- > --- POWER (1) -------- Ion Engine > --- PROPULSION (2) --- (None) > --- UTILITY (2) ------ Large Storage Unit Makeshift Light Armor Plating > --- WEAPON (2) ------- Slug Cannon Rocket Launcher > --- INVENTORY (15) --- Cobbler Unit EM Pulse Gun Riot Gun Assault Rifle Light Assault Rifle Battle Rifle Subdweller Machine Gun Barrage Gun Peak State ------------ > --- POWER ------------ Ion Engine > --- PROPULSION ------- Compact Wheel Compact Wheel > --- UTILITY ---------- Large Storage Unit Makeshift Light Armor Plating > --- WEAPON ----------- Battle Cannon Slug Cannon > --- INVENTORY -------- EM Pulse Gun Riot Gun Assault Rifle Light Assault Rifle Barrage Gun Rocket Launcher [Rating: 15] Favorites ----------- Power Ion Engine Engine Ion Engine Propulsion Light Treads Treads Light Treads Leg Aluminum Leg Wheel Compact Wheel Utility Large Storage Unit Storage Large Storage Unit Protection Makeshift Light Armor Plating Weapon Slug Cannon Energy Gun EM Pulse Gun Ballistic Gun Light Assault Rifle Ballistic Cannon Slug Cannon Launcher Rocket Launcher Build | -11 -10 -10 ------- Run | Yrd Mat Sub Slots Evolved . | . . . Power . | . . . Propulsion . | . . . Utility . | . . . Weapon . | . . . Parts Attached 14 | . 7 7 Power 1 | . . 1 Engine 1 | . . 1 Core . | . . . Reactor . | . . . Propulsion 5 | . 3 2 Treads 3 | . 3 . Leg . | . . . Wheel 2 | . . 2 Hover . | . . . Flight . | . . . Utility 2 | . 1 1 Device . | . . . Storage 1 | . 1 . Processor . | . . . Hackware . | . . . Protection 1 | . . 1 Artifact . | . . . Weapon 6 | . 3 3 Energy Gun 1 | . 1 . Energy Cannon . | . . . Ballistic Gun 1 | . 1 . Ballistic Cannon 2 | . . 2 Launcher 2 | . 1 1 Special Weapon . | . . . Impact Weapon . | . . . Slashing Weapon . | . . . Piercing Weapon . | . . . Special Melee Weapon . | . . . Unidentified Prototypes . | . . . Parts Lost 9 | . 4 5 Power 1 | . . 1 Propulsion 5 | . 2 3 Utility . | . . . Weapon 3 | . 2 1 Highest Loss Streak 3 | . 1 3 To Critical Strikes 1 | . 1 . Average Slot Usage (%) 82 | . 90 79 Engine 13 | . 14 13 Treads 6 | . 18 1 Wheel 5 | . . 7 Storage 20 | . 27 16 Protection 7 | . . 11 Energy Gun 2 | . 7 . Ballistic Gun 7 | . 20 . Ballistic Cannon 13 | . . 20 Launcher 4 | . . 6 Naked Turns . | . . . Heaviest Build 40 | 11 34 40 Greatest Support 40 | 20 40 32 Greatest Overweight (x) 13 | . 1 13 Average Overweight (x) 3 | . . 4 Largest Inventory Capacity 15 | 8 15 15 Average Capacity 14 | 8 14 15 Most Carried 10 | 6 8 10 Average Carried 7 | 6 6 8 Final Capacity 15 | 8 15 15 Final Carried 9 | 6 7 9 Class Distribution -------------------- 100% | Mutant Dominant Class ---------------- Mutant | -10/Materials Mutant | -10/Subcaves Resources | -11 -10 -10 ----------- Run | Yrd Mat Sub Matter Collected 542 | 200 128 214 Remotely . | . . . Salvage Created 587 | . 524 63 Parts 43 | . 41 2 Haulers Intercepted 1 | . 1 . Recyclers Shooed . | . . . Parts Field Recycled . | . . . Retrieved Matter . | . . . Parts Self-Destructed 15 | . . 15 Prevented . | . . . Kills | -11 -10 -10 ------- Run | Yrd Mat Sub Combat Hostiles Destroyed 14 | . 10 4 Guns 10 | . 10 . Cannons 4 | . . 4 Classes Destroyed 10 | . 9 1 Worker 1 | . 1 . Builder 3 | . 3 . Tunneler 2 | . 2 . Hauler 1 | . 1 . Recycler 1 | . 1 . Mechanic 1 | . 1 . Watcher 3 | . 3 . Swarmer 7 | . 7 . Grunt 3 | . 3 . Subdweller 4 | . . 4 Best Kill Streak 4 | . 4 2 Combat Bots Only 3 | . 3 2 Max Kills in Single Turn 4 | . 4 1 Gunslinging . | . . . Exploded . | . . . Melee . | . . . Uniques/NPCs Destroyed . | . . . Combat | -11 -10 -10 -------- Run | Yrd Mat Sub Hostile Shots Fired 107 | . 61 46 Missed 23 | . 10 13 Damage Taken 1382 | . 574 808 Core 255 | . 83 172 Absorbed by Shields . | . . . Core Remaining (%) 100 | 100 . . Volleys Fired 108 | . 51 57 Largest 2 | . 2 2 Hottest 87 | . 60 87 Shots Fired 163 | . 100 63 Gun 99 | . 99 . Cannon 58 | . . 58 Launcher 6 | . 1 5 Special . | . . . Kinetic 113 | . 55 58 Thermal . | . . . Explosive 6 | . 1 5 Electromagnetic 44 | . 44 . Robot Hit Streak 10 | . 9 10 Robot Miss Streak 5 | . 5 5 Penetration Max . | . . . Secondary Targets 2 | . 2 . Max Gunslinging Chain 1 | . 1 . Shots Hit Robots 62 | . 47 15 Core Hits 31 | . 25 6 Critical Kills 1 | . . 1 Critical Parts Destroyed . | . . . Critical Strikes 4 | . . 4 Destroy 4 | . . 4 Melee Attacks . | . . . Impact . | . . . Slashing . | . . . Piercing . | . . . Sneak Attacks . | . . . Combat Hostiles . | . . . Follow-up Attacks . | . . . Damage Inflicted 1480 | . 964 516 Guns 507 | . 507 . Cannons 371 | . . 371 Explosions 586 | . 441 145 Melee . | . . . Ramming 16 | . 16 . Kinetic 624 | . 253 371 Thermal 270 | . 270 . Explosive 316 | . 171 145 Electromagnetic 254 | . 254 . Impact . | . . . Slashing . | . . . Piercing . | . . . Highest Corruption . | . . . Average Corruption . | . . . Corruption Purged . | . . . Corruption Blocked . | . . . Overload Shots . | . . . Overflow Damage 21 | . 19 2 Projectiles . | . . . Explosions 21 | . 19 2 Melee . | . . . Knockbacks 4 | . . 4 Impact . | . . . Kinetic 4 | . . 4 Secondary . | . . . Self-Inflicted Damage 191 | . 151 40 Shots 5 | . 3 2 Rammed 2 | . 2 . Targets Rammed 3 | . 3 . Kicked . | . . . Crushed 1 | . 1 . Highest Temperature 72 | . 72 . Average Temperature 27 | . 27 . Received Heat Transfer 249 | . 66 183 Siege Activations . | . . . Robots Corrupted . | . . . Combat Hostiles . | . . . Parts Fried . | . . . Impact Corruptions . | . . . Robots Melted . | . . . Combat Hostiles . | . . . Parts Melted . | . . . Heat Transferred 250 | . 250 . Parts Sabotaged . | . . . Parts Stolen . | . . . Parts Stripped . | . . . Power Chain Reactions 2 | . 2 . Alert | -11 -10 -10 ------- Run | Yrd Mat Sub Peak Influence 266 | . 266 . Initial . | . . . Average 123 | . 124 . Maximum Alert Level 1 | . 1 . Low Security (%) 72 | 100 72 . Level 1 27 | . 27 . Level 2 . | . . . Level 3 . | . . . Level 4 . | . . . Level 5 . | . . . High Security . | . . . Max Security . | . . . Squads Dispatched 1 | . 1 . Investigation . | . . . Extermination . | . . . Reinforcement 1 | . 1 . Assault . | . . . Garrison . | . . . Intercept . | . . . Searches Triggered . | . . . Construction Impeded . | . . . Haulers Reinforced . | . . . Active Scanning Responses . | . . . Cargo Convoy Interrupts . | . . . Stealth | -11 -10 -10 --------- Run | Yrd Mat Sub Distress Signals 3 | . 3 . Communications Jammed . | . . . Distress Signals . | . . . Times Spotted 29 | . 19 10 Peak Tracking Total 3 | . 3 2 Tactical Retreats 5 | . 3 2 Traps | -11 -10 -10 ------- Run | Yrd Mat Sub Traps Triggered 4 | . . 4 Indirectly . | . . . Trap Hack Attempts . | . . . Triggered . | . . . Disarmed . | . . . Reprogrammed . | . . . Reused . | . . . Traps Extracted . | . . . Installed . | . . . Triggered . | . . . Machines | -11 -10 -10 ---------- Run | Yrd Mat Sub Machines Disabled 3 | . 2 1 Max in Single Turn 2 | . 2 1 Machines Repaired . | . . . Machines Dismantled . | . . . Machines Sabotaged . | . . . Overloaded Fab Kills . | . . . Hacking | -11 -10 -10 --------- Run | Yrd Mat Sub Machines Accessed . | . . . Terminals . | . . . Fabricators . | . . . Repair Stations . | . . . Recycling Units . | . . . Scanalyzers . | . . . Garrison Access . | . . . Total Hacks . | . . . Successful . | . . . Failed . | . . . Catastrophic . | . . . Database Lockouts . | . . . Manual . | . . . Terminals . | . . . Fabricators . | . . . Repair Stations . | . . . Recycling Units . | . . . Scanalyzers . | . . . Garrison Access . | . . . Terminal Hacks . | . . . Fabricator Hacks . | . . . Repair Station Hacks . | . . . Recycling Unit Hacks . | . . . Scanalyzer . | . . . Garrison Access Hacks . | . . . Unauthorized Hacks . | . . . Terminals . | . . . Fabricators . | . . . Repair Stations . | . . . Recycling Units . | . . . Scanalyzers . | . . . Garrison Access . | . . . Data Cores Recovered . | . . . Used . | . . . Hacking Detections . | . . . Full Trace Events . | . . . Feedback Events . | . . . Feedback Blocked . | . . . Robot Schematics Acquired . | . . . Robots Built . | . . . Authchips . | . . . Time . | . . . Total Robot Build Rating . | . . . Part Schematics Acquired . | . . . Parts Built . | . . . Authchips . | . . . Time . | . . . Total Part Build Rating . | . . . Parts Repaired . | . . . Time . | . . . Parts Recycled . | . . . Recycled Matter . | . . . Retrieved Matter . | . . . Retrieved Components . | . . . Parts Scanalyzed . | . . . Part Schematics Acquired . | . . . Parts Damaged . | . . . Bothacking | -11 -10 -10 ------------ Run | Yrd Mat Sub Used RIF Installer . | . . . Robots Hacked . | . . . Non-combat . | . . . Combat . | . . . Robot Hacks Applied . | . . . Relay Couplers Released . | . . . Fabnet Peak Effective % . | . . . Robots Rewired . | . . . Allies Hacked . | . . . Hacks Repelled . | . . . Allies | -11 -10 -10 -------- Run | Yrd Mat Sub Total Allies . | . . . Largest Group . | . . . Highest-Rated Group . | . . . Highest-Rated Ally . | . . . Total Orders . | . . . Ally Attacks . | . . . Total Damage . | . . . Kills . | . . . Allies Corrupted . | . . . Allies Melted . | . . . Intel | -11 -10 -10 ------- Run | Yrd Mat Sub Robot Analysis Total . | . . . Derelict Logs Recovered 1 | . . 1 Drone Launches . | . . . Drone Recoveries . | . . . Exploration | -11 -10 -10 ------------- Run | Yrd Mat Sub Turns Passed 3553 | 10 1160 2383 Spaces Moved 1173 | 9 373 791 Core 229 | . . 229 Treads 360 | . 342 18 Legs 40 | 9 31 . Wheels 544 | . . 544 Hover . | . . . Flight . | . . . Fastest Speed 115 | 120 120 115 Average Speed 254 | 120 195 283 Slowest Speed 700 | 120 240 700 Overloaded Moves . | . . . Propulsion Burnouts . | . . . Robots Hopped . | . . . Cave-ins Triggered . | . . . Exploration Rate (%) 43 | 2 84 44 Regions Visited 2 Branch Regions 1 Pre-discovered Areas . | . . . Known Exits Taken . | . . . Unknown Exits Taken 2 | 1 1 . Scrap Searched 1 | . . 1 Spaces Dug 22 | . . 22 Terrain Destroyed 64 | . 22 42 Melee . | . . . Projectile 10 | . . 10 AOE 54 | . 22 32 Terrain Rammed . | . . . Walls Destroyed . | . . . Machines Disabled . | . . . Actions | -11 -10 -10 --------- Run | Yrd Mat Sub Total 1594 | 8 712 874 Wait 279 | . 271 8 Move 1171 | 8 372 791 Hop . | . . . Pick Up 14 | . 6 8 Fast Attach 1 | . 1 . Attach 12 | . 5 7 Detach . | . . . Swap 1 | . 1 . Drop 5 | . 2 3 Fire 108 | . 51 57 Melee . | . . . Ram . | . . . Kick . | . . . Crush 3 | . 3 . Escape Stasis . | . . . Rewire . | . . . Trap . | . . . Miscellaneous . | . . . Route ------- -11/Scrapyard -10/Materials (discovered 4 exits: [*Mat x2] / [*Min] / [*Sub]) -10/Subcaves (discovered 1 exit: [*Rec]) History --------- Turn | Location | Event 1 | -11/Scrapyard | Discovered new exit (range 3) 11 | -11/Scrapyard | Entered Materials 38 | -10/Materials | Discovered new exit (range 4) 301 | -10/Materials | Build established: Mutant 307 | -10/Materials | Discovered new exit (range 16) 773 | -10/Materials | Discovered new exit (range 5) 1153 | -10/Materials | Discovered new exit (range 9) 1171 | -10/Materials | Entered Subcaves 1278 | -10/Subcaves | Shifting Twisted Machinery released Slug Cannon 1363 | -10/Subcaves | Core integrity fell below 50% 1375 | -10/Subcaves | Shifting Twisted Machinery released Battle Cannon 1389 | -10/Subcaves | Lost 3 parts (1p1n1w) 1677 | -10/Subcaves | Shifting Twisted Machinery released Sub. Machine Gun 1678 | -10/Subcaves | Shifting Twisted Machinery released Barrage Gun 1920 | -10/Subcaves | Core integrity fell below 20% 2006 | -10/Subcaves | Learned Materials security intel 2485 | -10/Subcaves | Discovered new exit (range 8) 3147 | -10/Subcaves | Shifting Twisted Machinery released Sub. Laser 3554 | -10/Subcaves | Destroyed by Autobeam Turret with Autobeam Last Messages --------------- 01979_ An expanding cloud of shrapnel blasts out in all directions. 01979_ Com. Wheel destroyed. 02006_ Acquired derelict log, extracted data. Data stored: Materials security intel. 02059_ Subatomizers dissect the Lgt. Ion Engine. 02193_ Subatomizers dissect the Lgt. Ion Engine, destroying it. 02439_ Acquired 10 matter. 02485_ EXIT=FOUND 02493_ Machine disabled. 02626_ Acquired 12 matter. 02652_ Dropped Battle Cannon. 02659_ Subatomizers dissect the Battle Cannon, destroying it. 02745_ Acquired 14 matter. 03074_ The unstable cave ceiling collapses. Sub. Laser falls loose from the Twisted Machinery. 03552_ Acquired 63 matter. Map ----- +----------------------------------------------------+ | ## # #??????????????? | | # "#" #### #??????????????? | | ########## #??? #?????????????? | | ##????#### #????###?????????????? | | ##???# ####?????????????????? | | ## ###?# ##????????????????? | | ### #### ##???????????????? | | #?# ### ###### #???????????????? | | """"" #?## #####???# ##???????????????? | | ##" "#??## ##?????## #????????????????? | | # ###" #???##" #?????# ##???????????????? | | # ### "##?####### #?????## ########????????? | | #### ""###"# " ## #?????# # # #????????? | | #?## " """ """ #?????#### #????????? | | "?# "" " #????????## ##???????? | | "?# ## #?????????# ## # #???????? | | ## ## #####???######## ##???????? | | #### #### #????## ####? #?? | | ### ## #????# ## # ##? | | ## #?????## #? | | ## ###" ## ##??????# #?? | | ### ##""#### ######?## # # # #? | | #?#######" " ?# ### ## ### ###??#?## | | ##????####" ###?# ## ##?????# | | #####????#" ##### #### #????## | | "" #????#""t @& ##?# ##???## | | #???#< &%&& ### ##????# | | ##???##""t &%% ## ######### | | ## #?????#" ####### ### ## ## ## | | #######?????#" #????# ### | | #???????????#" " "#???## | | #???????????########??## # ## | | #?????????######??????# ###### | | ##??????#### ##?????# ## ##??### | | ??????## ##????# ## #????## | | ##??????# ##???# #?????# | | ????????## #???# ##?????# | | ?????????## #???# ### ##??????# | | ??????????#### ### ##??# #####?###???????## | | ?????????????##### ##?# ###??????????????## | | ????????????????# ### #???????????????? | | ????????????????### ## ####????????????? | | ?????????????????## ## #????????????? | | ?????????????????# ######???????? | | ?????????????????## ##?####?? | | ??????????????????###### ## ### ### | | ???????????????????????##### #### ! # | | ???????????????????????????## #??# # | | ????????????????????????????###??## ### | | ?????????????????????????????????## #?# | +----------------------------------------------------+ Best States ------------- Heat Dissipation 25 Energy Generation 10 Energy Capacity 250 Matter Stores 300 Matter Capacity 300 Sight Range 16 Terrain Scan Density 10 Armor Coverage 100 Evasion (%) 50 Recoil Reduction 2 Item Schematics ----------------- None Robot Schematics ------------------ None Fabricated ------------ Nothing Alien Tech Used ----------------- None Achievements -------------- None Challenges ------------ None Game ------ Seed PointyMolecularAutogun Manual? 0 Play Time 00:10:57 Cumulative 81.1 hours Start 2024.07.31 @ 18:16:39 End 2024.07.31 @ 18:26:01 Sessions 1 Manual Loads 0 Difficulty Rogue Special Mode None Game No. 140 Rogue 140 Adventurer 0 Explorer 0 Win Type - Total 0 Types 0/0/0/0/0/0/0/0/0 Lore% 51 Gallery% 60 Achievement% 44 Wizard Run 0 Options --------- Layout 1 ASCII 0 Keyboard 0 Movement Mouse Keybinds 0 Fullscreen 2 Font 20/SmallcapsGlow Map View 54x42 Zoom Use 0% Tactical HUD 1 Map Filters NONE Filters NONE Steam 0 RUN: b31077f5-641d-4865-991a-f79ab6854b4a